fUST/lending_fUST_20250227
["ID","MTS","AMOUNT","RATE_DAILY","PERIOD"]
[354730628,1740648642527,-500.0,0.00047123,120]
[354730629,1740648642536,-500.0,0.00047123,120]
[354730630,1740648642545,-633.1,0.00047123,120]
[354730631,1740648642554,-500.0,0.00047123,120]
[354730632,1740648642563,-500.0,0.00047123,120]
[354730633,1740648642575,-500.0,0.00047123,120]
[354730634,1740648642584,-165.98,0.00047123,120]
[354730635,1740648642598,-500.0,0.00047123,120]
[354730636,1740648642607,-213.23,0.00047123,120]
[354730637,1740648642616,-500.0,0.00047123,120]
[354730639,1740648642626,-500.0,0.00047123,120]
[354730641,1740648642636,-299.86,0.00047123,120]
[354730643,1740648642645,-619.04,0.00047123,120]
[354730645,1740648642655,-500.0,0.00047123,120]
[354730647,1740648642665,-500.0,0.00047123,120]
[354730649,1740648642674,-500.0,0.00047123,120]
[354730651,1740648642685,-500.0,0.00047123,120]
[354730654,1740648642694,-500.0,0.00047123,120]
[354730657,1740648642703,-162.44,0.00047123,120]
[354730659,1740648642713,-500.0,0.00047123,120]
[354730662,1740648642723,-180.71,0.00047123,120]
[354730664,1740648642732,-500.0,0.00047123,120]
[354730665,1740648642742,-500.0,0.00047123,120]
[354730666,1740648642751,-178.75,0.00047123,120]
[354730667,1740648642760,-500.0,0.00047123,120]
[354730668,1740648642770,-556.85,0.00047123,120]
[354730669,1740648642780,-500.0,0.00047123,120]
[354730670,1740648642789,-170.73,0.00047123,120]
[354730671,1740648642799,-500.0,0.00047123,120]
[354730672,1740648642808,-500.0,0.00047123,120]
[354730673,1740648642818,-500.0,0.00047123,120]
[354730674,1740648642827,-150.37,0.00047123,120]
[354730675,1740648642837,-500.0,0.00047123,120]
[354730676,1740648642846,-412.55,0.00047123,120]
[354730677,1740648642855,-500.0,0.00047123,120]
[354730678,1740648642865,-500.0,0.00047123,120]
[354730679,1740648642875,-551.72,0.00047123,120]
[354730680,1740648642884,-500.0,0.00047123,120]
[354730681,1740648642893,-499.22,0.00047123,120]
[354730682,1740648642902,-500.0,0.00047123,120]
[354730683,1740648642911,-500.0,0.00047123,120]
[354730684,1740648642920,-500.0,0.00047123,120]
[354730685,1740648642930,-186.04,0.00047123,120]
[354730686,1740648642939,-500.0,0.00047123,120]
[354730687,1740648642950,-590.52,0.00047123,120]
[354730688,1740648642959,-611.45690777,0.00047123,120]
[354730689,1740648642968,-500.0,0.00047123,120]
[354730690,1740648642977,-555.11,0.00047123,120]
[354730691,1740648642986,-500.0,0.00047123,120]
[354730692,1740648642995,-552.24,0.00047123,120]
[354730693,1740648643004,-500.0,0.00047123,120]
[354730694,1740648643013,-500.0,0.00047123,120]
[354730695,1740648643022,-2236.09,0.00047123,120]
[354730696,1740648643031,-628.54,0.00047123,120]
[354730697,1740648643040,-394.6,0.00047123,120]
[354730698,1740648643049,-1103.56,0.00047123,120]
[354730699,1740648643058,-3105.01,0.00047123,120]
[354730700,1740648643068,-500.0,0.00047123,120]
[354730701,1740648643079,-829.98,0.00047123,120]
[354730702,1740648643090,-371.81,0.00047123,120]
[354730703,1740648643101,-500.0,0.00047123,120]
[354730704,1740648643113,-500.0,0.00047123,120]
[354730705,1740648643125,-500.0,0.00047123,120]
[354730706,1740648643137,-500.0,0.00047123,120]
[354730707,1740648643148,-1327.41,0.00047123,120]
[354730708,1740648643159,-710.79,0.00047123,120]
[354730709,1740648643169,-500.0,0.00047123,120]
[354730710,1740648643179,-500.0,0.00047123,120]
[354730711,1740648643190,-500.0,0.00047123,120]
[354730712,1740648643202,-439.05,0.00047123,120]
[354730713,1740648643214,-500.0,0.00047123,120]
[354730714,1740648643225,-500.0,0.00047123,120]
[354730715,1740648643237,-500.0,0.00047123,120]
[354730716,1740648643248,-500.0,0.00047123,120]
[354730717,1740648643260,-564.14,0.00047123,120]
[354730718,1740648643271,-177.83,0.00047123,120]
[354730719,1740648643282,-507.96,0.00047123,120]
[354730720,1740648643294,-500.0,0.00047123,120]
[354730721,1740648643305,-876.22,0.00047123,120]
[354730722,1740648643316,-174.82,0.00047123,120]
[354730723,1740648643332,-500.0,0.00047123,120]
[354730724,1740648643344,-1000.0,0.00047123,2]
[354730725,1740648643356,-500.0,0.00047123,120]
[354730726,1740648643367,-500.0,0.00047123,120]
[354730727,1740648643378,-500.0,0.00047123,120]
[354730728,1740648643390,-500.0,0.00047123,120]
[354730729,1740648643400,-500.0,0.00047123,120]
[354730730,1740648643411,-4560.78,0.00047123,6]
[354730731,1740648643423,-500.0,0.00047123,120]
[354730732,1740648643435,-500.0,0.00047123,120]
[354730733,1740648643447,-500.0,0.00047123,120]
[354730734,1740648643459,-500.0,0.00047123,120]
[354730735,1740648643471,-500.0,0.00047123,120]
[354730736,1740648643481,-500.0,0.00047123,120]
[354730737,1740648643491,-704.62,0.00047123,120]
[354730738,1740648643501,-500.0,0.00047123,120]
[354730739,1740648643512,-1639.23,0.00047123,120]
[354730740,1740648643522,-500.0,0.00047123,120]
[354730741,1740648643533,-5983.05,0.00047123,120]
[354730742,1740648643544,-500.0,0.00047123,120]
[354730743,1740648643555,-500.0,0.00047123,120]
[354730744,1740648643567,-500.0,0.00047123,120]
[354730745,1740648643582,-5807.92,0.00047123,120]
[354730746,1740648643596,-507.34,0.00047123,120]
[354730747,1740648643608,-500.0,0.00047123,120]
[354730748,1740648643619,-1247.71,0.00047123,120]
[354730749,1740648643633,-500.0,0.00047123,120]
[354730750,1740648643645,-211.85,0.00047123,120]
[354730751,1740648643656,-1493.42,0.00047123,120]
[354730752,1740648643670,-3548.42,0.00047123,120]
[354730753,1740648643680,-32800.06,0.00047123,7]
[354730754,1740648643690,-1812.5,0.00047123,14]
[354730755,1740648643700,-522.17,0.00047123,120]
[354730756,1740648643710,-622.37,0.000472,30]
[354730757,1740648643719,-500.0,0.00047397,120]
[354730758,1740648643729,-164.31,0.00047397,120]
[354730759,1740648643740,-500.0,0.00047397,120]
[354730760,1740648643752,-349.94,0.00047397,120]
[354730761,1740648643764,-500.0,0.00047397,120]
[354730762,1740648643775,-633.1,0.00047397,120]
[354730763,1740648643787,-500.0,0.00047397,120]
[354730764,1740648643797,-500.0,0.00047397,120]
[354730765,1740648643807,-500.0,0.00047397,120]
[354730766,1740648643818,-500.0,0.00047397,120]
[354730767,1740648643829,-500.0,0.00047397,120]
[354730768,1740648643839,-500.0,0.00047397,120]
[354730769,1740648643849,-500.0,0.00047397,120]
[354730770,1740648643860,-339.72,0.00047397,120]
[354730771,1740648643871,-500.0,0.00047397,120]
[354730772,1740648643881,-500.0,0.00047397,120]
[354730773,1740648643891,-500.0,0.00047397,120]
[354730774,1740648643901,-368.41,0.00047397,120]
[354730775,1740648643911,-469.71,0.00047397,120]
[354730776,1740648643922,-500.0,0.00047397,120]
[354730777,1740648643932,-500.0,0.00047397,120]
[354730778,1740648643943,-500.0,0.00047397,120]
[354730779,1740648643954,-181.29,0.00047397,120]
[354730780,1740648643964,-500.0,0.00047397,120]
[354730781,1740648643974,-379.62,0.00047397,120]
[354730782,1740648643984,-500.0,0.00047397,120]
[354730783,1740648643995,-500.0,0.00047397,120]
[354730784,1740648644005,-500.0,0.00047397,120]
[354730785,1740648644015,-214.22,0.00047397,120]
[354730786,1740648644025,-500.0,0.00047397,120]
[354730787,1740648644035,-500.0,0.00047397,120]
[354730788,1740648644045,-563.88,0.00047397,120]
[354730789,1740648644055,-590.52,0.00047397,120]
[354730790,1740648644066,-500.0,0.00047397,120]
[354730791,1740648644078,-555.11,0.00047397,120]
[354730792,1740648644088,-500.0,0.00047397,120]
[354730793,1740648644098,-500.0,0.00047397,120]
[354730794,1740648644108,-500.0,0.00047397,120]
[354730795,1740648644118,-2236.09,0.00047397,120]
[354730796,1740648644129,-1103.56,0.00047397,120]
[354730797,1740648644139,-3105.01,0.00047397,120]
[354730798,1740648644149,-610.61,0.00047397,120]
[354730799,1740648644159,-829.98,0.00047397,120]
[354730800,1740648644169,-500.0,0.00047397,120]
[354730801,1740648644179,-1327.41,0.00047397,120]
[354730802,1740648644189,-710.79,0.00047397,120]
[354730803,1740648644200,-303.92,0.00047397,120]
[354730804,1740648644210,-500.0,0.00047397,120]
[354730805,1740648644221,-500.0,0.00047397,120]
[354730806,1740648644232,-500.0,0.00047397,120]
[354730807,1740648644242,-500.0,0.00047397,120]
[354730808,1740648644252,-500.0,0.00047397,120]
[354730809,1740648644263,-500.0,0.00047397,120]
[354730810,1740648644272,-507.96,0.00047397,120]
[354730811,1740648644283,-876.22,0.00047397,120]
[354730812,1740648644293,-500.0,0.00047397,120]
[354730813,1740648644303,-286.96,0.00047397,120]
[354730814,1740648644314,-500.0,0.00047397,120]
[354730815,1740648644324,-500.0,0.00047397,120]
[354730816,1740648644335,-4560.78,0.00047397,6]
[354730817,1740648644345,-500.0,0.00047397,120]
[354730818,1740648644356,-500.0,0.00047397,120]
[354730819,1740648644367,-500.0,0.00047397,120]
[354730820,1740648644378,-500.0,0.00047397,120]
[354730821,1740648644389,-268.36,0.00047397,120]
[354730822,1740648644399,-500.0,0.00047397,120]
[354730823,1740648644409,-704.62,0.00047397,120]
[354730824,1740648644419,-500.0,0.00047397,120]
[354730825,1740648644430,-1639.23,0.00047397,120]
[354730826,1740648644440,-500.0,0.00047397,120]
[354730827,1740648644450,-5983.05,0.00047397,120]
[354730828,1740648644460,-500.0,0.00047397,120]
[354730829,1740648644470,-500.0,0.00047397,120]
[354730830,1740648644481,-500.0,0.00047397,120]
[354730831,1740648644491,-5807.92,0.00047397,120]
[354730832,1740648644501,-507.34,0.00047397,120]
[354730833,1740648644512,-500.0,0.00047397,120]
[354730834,1740648644522,-1247.71,0.00047397,120]
[354730835,1740648644533,-500.0,0.00047397,120]
[354730836,1740648644544,-1493.42,0.00047397,120]
[354730837,1740648644554,-3548.42,0.00047397,120]
[354730838,1740648644564,-32800.06,0.00047397,7]
[354730839,1740648644576,-1812.5,0.00047397,14]
[354730840,1740648644586,-522.17,0.00047397,120]
[354730841,1740648644601,-500.0,0.00047671,120]
[354730842,1740648644611,-500.0,0.00047671,120]
[354730843,1740648644621,-500.0,0.00047671,120]
[354730844,1740648644632,-633.1,0.00047671,120]
[354730845,1740648644643,-500.0,0.00047671,120]
[354730846,1740648644653,-213.53,0.00047671,120]
[354730847,1740648644663,-500.0,0.00047671,120]
[354730848,1740648644675,-500.0,0.00047671,120]
[354730849,1740648644685,-500.0,0.00047671,120]
[354730850,1740648644695,-227.52,0.00047671,120]
[354730851,1740648644705,-500.0,0.00047671,120]
[354730852,1740648644716,-500.0,0.00047671,120]
[354730853,1740648644726,-500.0,0.00047671,120]
[354730854,1740648644736,-533.75,0.00047671,120]
[354730855,1740648644746,-500.0,0.00047671,120]
[354730856,1740648644757,-500.0,0.00047671,120]
[354730857,1740648644766,-500.0,0.00047671,120]
[354730858,1740648644776,-260.69,0.00047671,120]
[354730859,1740648644786,-500.0,0.00047671,120]
[354730860,1740648644797,-500.0,0.00047671,120]
[354730861,1740648644807,-334.86,0.00047671,120]
[354730862,1740648644818,-500.0,0.00047671,120]
[354730863,1740648644829,-500.0,0.00047671,120]
[354730864,1740648644838,-590.52,0.00047671,120]
[354730865,1740648644847,-500.0,0.00047671,120]
[354730866,1740648645011,-555.11,0.00047671,120]
[354730867,1740648645022,-500.0,0.00047671,120]
[354730868,1740648645032,-183.09,0.00047671,120]
[354730869,1740648645042,-500.0,0.00047671,120]
[354730870,1740648645051,-2236.09,0.00047671,120]
[354730871,1740648645061,-1103.56,0.00047671,120]
[354730872,1740648645072,-3105.01,0.00047671,120]
[354730873,1740648645081,-829.98,0.00047671,120]
[354730874,1740648645090,-500.0,0.00047671,120]
[354730875,1740648645099,-1327.41,0.00047671,120]
[354730876,1740648645108,-710.79,0.00047671,120]
[354730877,1740648645118,-500.0,0.00047671,120]
[354730878,1740648645127,-500.0,0.00047671,120]
[354730879,1740648645136,-500.0,0.00047671,120]
[354730880,1740648645146,-500.0,0.00047671,120]
[354730881,1740648645155,-500.0,0.00047671,120]
[354730882,1740648645164,-500.0,0.00047671,120]
[354730883,1740648645174,-507.96,0.00047671,120]
[354730884,1740648645183,-876.22,0.00047671,120]
[354730885,1740648645192,-500.0,0.00047671,120]
[354730886,1740648645202,-500.0,0.00047671,120]
[354730887,1740648645211,-500.0,0.00047671,120]
[354730888,1740648645220,-4560.78,0.00047671,6]
[354730889,1740648645229,-500.0,0.00047671,120]
[354730890,1740648645238,-500.0,0.00047671,120]
[354730891,1740648645248,-500.0,0.00047671,120]
[354730892,1740648645258,-500.0,0.00047671,120]
[354730893,1740648645267,-500.0,0.00047671,120]
[354730894,1740648645276,-704.62,0.00047671,120]
[354730895,1740648645286,-500.0,0.00047671,120]
[354730896,1740648645296,-1639.23,0.00047671,120]
[354730897,1740648645305,-500.0,0.00047671,120]
[354730898,1740648645314,-5983.05,0.00047671,120]
[354730899,1740648645324,-500.0,0.00047671,120]
[354730900,1740648645334,-500.0,0.00047671,120]
[354730901,1740648645343,-500.0,0.00047671,120]
[354730902,1740648645352,-5807.92,0.00047671,120]
[354730903,1740648645362,-507.34,0.00047671,120]
[354730904,1740648645371,-500.0,0.00047671,120]
[354730905,1740648645381,-1247.71,0.00047671,120]
[354730906,1740648645391,-500.0,0.00047671,120]
[354730907,1740648645400,-1493.42,0.00047671,120]
[354730908,1740648645409,-3548.42,0.00047671,120]
[354730909,1740648645419,-32800.06,0.00047671,7]
[354730910,1740648645428,-1812.5,0.00047671,14]
[354730911,1740648645437,-522.17,0.00047671,120]
[354730912,1740648645446,-500.0,0.00047945,120]
[354730914,1740648645455,-500.0,0.00047945,120]
[354730915,1740648645465,-479.51,0.00047945,120]
[354730916,1740648645474,-633.1,0.00047945,120]
[354730917,1740648645483,-500.0,0.00047945,120]
[354730918,1740648645492,-500.0,0.00047945,120]
[354730919,1740648645502,-586.4,0.00047945,120]
[354730920,1740648645511,-500.0,0.00047945,120]
[354730921,1740648645520,-500.0,0.00047945,120]
[354730922,1740648645530,-500.0,0.00047945,120]
[354730923,1740648645539,-500.0,0.00047945,120]
[354730924,1740648645548,-500.0,0.00047945,120]
[354730925,1740648645557,-500.0,0.00047945,120]
[354730926,1740648645567,-500.0,0.00047945,120]
[354730927,1740648645577,-500.0,0.00047945,120]
[354730928,1740648645587,-369.74,0.00047945,120]
[354730929,1740648645599,-500.0,0.00047945,120]
[354730930,1740648645609,-500.0,0.00047945,120]
[354730932,1740648645618,-590.52,0.00047945,120]
[354730934,1740648645629,-500.0,0.00047945,120]
[354730936,1740648645638,-555.11,0.00047945,120]
[354730938,1740648645648,-500.0,0.00047945,120]
[354730940,1740648645657,-500.0,0.00047945,120]
[354730942,1740648645667,-2236.09,0.00047945,120]
[354730944,1740648645676,-1103.56,0.00047945,120]
[354730947,1740648645686,-3105.01,0.00047945,120]
[354730949,1740648645695,-829.98,0.00047945,120]
[354730951,1740648645705,-500.0,0.00047945,120]
[354730953,1740648645714,-1327.41,0.00047945,120]
[354730956,1740648645723,-710.79,0.00047945,120]
[354730957,1740648645733,-500.0,0.00047945,120]
[354730958,1740648645742,-500.0,0.00047945,120]
[354730959,1740648645751,-500.0,0.00047945,120]
[354730960,1740648645761,-281.73,0.00047945,120]
[354730961,1740648645771,-500.0,0.00047945,120]
[354730962,1740648645780,-500.0,0.00047945,120]
[354730963,1740648645790,-507.96,0.00047945,120]
[354730964,1740648645799,-876.22,0.00047945,120]
[354730965,1740648645808,-500.0,0.00047945,120]
[354730966,1740648645821,-500.0,0.00047945,120]
[354730968,1740648645830,-500.0,0.00047945,120]
[354730969,1740648645839,-4560.78,0.00047945,6]
[354730970,1740648645849,-500.0,0.00047945,120]
[354730971,1740648645858,-500.0,0.00047945,120]
[354730972,1740648645868,-500.0,0.00047945,120]
[354730973,1740648645877,-500.0,0.00047945,120]
[354730974,1740648645888,-500.0,0.00047945,120]
[354730975,1740648645897,-704.62,0.00047945,120]
[354730976,1740648645906,-500.0,0.00047945,120]
[354730977,1740648645915,-1639.23,0.00047945,120]
[354730978,1740648645925,-294.44,0.00047945,120]
[354730979,1740648645933,-5983.05,0.00047945,120]
[354730980,1740648645943,-633.21,0.00047945,120]
[354730981,1740648645952,-500.0,0.00047945,120]
[354730982,1740648645962,-551.92,0.00047945,120]
[354730983,1740648645972,-5807.92,0.00047945,120]
[354730984,1740648645981,-507.34,0.00047945,120]
[354730985,1740648645990,-500.0,0.00047945,120]
[354730986,1740648645999,-1247.71,0.00047945,120]
[354730987,1740648646009,-356.47,0.00047945,120]
[354730988,1740648646018,-1493.42,0.00047945,120]
[354730989,1740648646027,-3548.42,0.00047945,120]
[354730990,1740648646037,-32800.06,0.00047945,7]
[354730991,1740648646045,-1812.5,0.00047945,14]
[354730992,1740648646055,-522.17,0.00047945,120]
[354730993,1740648646064,-1000.72670345,0.00048,60]
[354730994,1740648646074,-500.0,0.00048219,120]
[354730995,1740648646083,-507.43,0.00048219,120]
[354730996,1740648646094,-633.1,0.00048219,120]
[354730997,1740648646103,-500.0,0.00048219,120]
[354730998,1740648646113,-500.0,0.00048219,120]
[354730999,1740648646123,-500.0,0.00048219,120]
[354731000,1740648646133,-500.0,0.00048219,120]
[354731001,1740648646142,-500.0,0.00048219,120]
[354731002,1740648646152,-228.69,0.00048219,120]
[354731003,1740648646162,-371.21,0.00048219,120]
[354731004,1740648646171,-500.0,0.00048219,120]
[354731005,1740648646180,-500.0,0.00048219,120]
[354731006,1740648646189,-500.0,0.00048219,120]
[354731007,1740648646198,-376.15,0.00048219,120]
[354731008,1740648646208,-500.0,0.00048219,120]
[354731009,1740648646217,-590.52,0.00048219,120]
[354731010,1740648646226,-500.0,0.00048219,120]
[354731011,1740648646236,-555.11,0.00048219,120]
[354731012,1740648646245,-500.0,0.00048219,120]
[354731013,1740648646254,-242.93,0.00048219,120]
[354731014,1740648646264,-2236.09,0.00048219,120]
[354731015,1740648646275,-1103.56,0.00048219,120]
[354731016,1740648646284,-3105.01,0.00048219,120]
[354731017,1740648646294,-829.98,0.00048219,120]
[354731018,1740648646303,-500.0,0.00048219,120]
[354731019,1740648646312,-1327.41,0.00048219,120]
[354731020,1740648646321,-710.79,0.00048219,120]
[354731021,1740648646331,-500.0,0.00048219,120]
[354731022,1740648646341,-500.0,0.00048219,120]
[354731023,1740648646350,-578.15,0.00048219,120]
[354731024,1740648646359,-500.0,0.00048219,120]
[354731025,1740648646369,-500.0,0.00048219,120]
[354731026,1740648646378,-507.96,0.00048219,120]
[354731027,1740648646387,-876.22,0.00048219,120]
[354731028,1740648646396,-500.0,0.00048219,120]
[354731029,1740648646405,-500.0,0.00048219,120]
[354731030,1740648646415,-500.0,0.00048219,120]
[354731031,1740648646424,-4560.78,0.00048219,6]
[354731032,1740648646434,-500.0,0.00048219,120]
[354731033,1740648646443,-500.0,0.00048219,120]
[354731034,1740648646452,-500.0,0.00048219,120]
[354731035,1740648646462,-500.0,0.00048219,120]
[354731036,1740648646471,-500.0,0.00048219,120]
[354731037,1740648646481,-704.62,0.00048219,120]
[354731038,1740648646490,-500.0,0.00048219,120]
[354731039,1740648646499,-1639.23,0.00048219,120]
[354731040,1740648646508,-5983.05,0.00048219,120]
[354731041,1740648646519,-500.0,0.00048219,120]
[354731042,1740648646528,-5807.92,0.00048219,120]
[354731043,1740648646537,-507.34,0.00048219,120]
[354731044,1740648646546,-500.0,0.00048219,120]
[354731045,1740648646556,-1247.71,0.00048219,120]
[354731046,1740648646565,-1493.42,0.00048219,120]
[354731047,1740648646576,-3548.42,0.00048219,120]
[354731048,1740648646586,-32800.06,0.00048219,7]
[354731049,1740648646599,-1812.5,0.00048219,14]
[354731050,1740648646609,-522.17,0.00048219,120]
[354731051,1740648646619,-26959.62,0.000483,30]
[354731052,1740648646629,-500.0,0.00048341,7]
[354731053,1740648646639,-8989.78588258,0.00048398,120]
[354731054,1740648646648,-500.0,0.00048493,120]
[354731055,1740648646657,-633.1,0.00048493,120]
[354731056,1740648646666,-500.0,0.00048493,120]
[354731057,1740648646675,-500.0,0.00048493,120]
[354731058,1740648646685,-500.0,0.00048493,120]
[354731059,1740648646695,-500.0,0.00048493,120]
[354731060,1740648646704,-158.09,0.00048493,120]
[354731061,1740648646713,-500.0,0.00048493,120]
[354731062,1740648646722,-500.0,0.00048493,120]
[354731063,1740648646731,-500.0,0.00048493,120]
[354731064,1740648646740,-305.20486164,0.00048493,120]
[354731065,1740648646749,-590.52,0.00048493,120]
[354731066,1740648646759,-500.0,0.00048493,120]
[354731067,1740648646768,-555.11,0.00048493,120]
[354731068,1740648646777,-500.0,0.00048493,120]
[354731069,1740648646787,-2236.09,0.00048493,120]
[354731070,1740648646796,-1103.56,0.00048493,120]
[354731071,1740648646806,-3105.01,0.00048493,120]
[354731072,1740648646815,-829.98,0.00048493,120]
[354731073,1740648646825,-500.0,0.00048493,120]
[354731074,1740648646834,-1327.41,0.00048493,120]
[354731075,1740648646844,-710.79,0.00048493,120]
[354731076,1740648646853,-500.0,0.00048493,120]
[354731077,1740648646863,-500.0,0.00048493,120]
[354731078,1740648646872,-500.0,0.00048493,120]
[354731079,1740648646881,-500.0,0.00048493,120]
[354731080,1740648646890,-507.96,0.00048493,120]
[354731081,1740648646899,-876.22,0.00048493,120]
[354731082,1740648646909,-500.0,0.00048493,120]
[354731083,1740648646918,-500.0,0.00048493,120]
[354731084,1740648646928,-500.0,0.00048493,120]
[354731085,1740648646937,-4560.78,0.00048493,6]
[354731086,1740648646946,-500.0,0.00048493,120]
[354731087,1740648646955,-500.0,0.00048493,120]
[354731088,1740648646965,-500.0,0.00048493,120]
[354731089,1740648646974,-500.0,0.00048493,120]
[354731090,1740648646983,-500.0,0.00048493,120]
[354731091,1740648646992,-704.62,0.00048493,120]
[354731092,1740648647002,-500.0,0.00048493,120]
[354731093,1740648647011,-1639.23,0.00048493,120]
[354731094,1740648647021,-5983.05,0.00048493,120]
[354731095,1740648647030,-566.87,0.00048493,120]
[354731096,1740648647039,-5807.92,0.00048493,120]
[354731097,1740648647049,-507.34,0.00048493,120]
[354731098,1740648647058,-500.0,0.00048493,120]
[354731099,1740648647068,-1247.71,0.00048493,120]
[354731100,1740648647081,-1493.42,0.00048493,120]
[354731101,1740648647090,-3548.42,0.00048493,120]
[354731102,1740648647100,-32800.06,0.00048493,7]
[354731103,1740648647109,-1812.5,0.00048493,14]
[354731104,1740648647119,-500.0,0.00048767,120]
[354731105,1740648647128,-633.1,0.00048767,120]
[354731106,1740648647137,-500.0,0.00048767,120]
[354731107,1740648647146,-500.0,0.00048767,120]
[354731108,1740648647156,-500.0,0.00048767,120]
[354731109,1740648647166,-500.0,0.00048767,120]
[354731110,1740648647175,-500.0,0.00048767,120]
[354731111,1740648647184,-500.0,0.00048767,120]
[354731112,1740648647194,-500.0,0.00048767,120]
[354731113,1740648647204,-590.52,0.00048767,120]
[354731114,1740648647214,-500.0,0.00048767,120]
[354731115,1740648647223,-555.11,0.00048767,120]
[354731116,1740648647233,-500.0,0.00048767,120]
[354731117,1740648647242,-2236.09,0.00048767,120]
[354731118,1740648647252,-1103.56,0.00048767,120]
[354731119,1740648647263,-3105.01,0.00048767,120]
[354731120,1740648647273,-829.98,0.00048767,120]
[354731121,1740648647284,-500.0,0.00048767,120]
[354731122,1740648647294,-1327.41,0.00048767,120]
[354731123,1740648647306,-710.79,0.00048767,120]
[354731124,1740648647316,-500.0,0.00048767,120]
[354731125,1740648647329,-500.0,0.00048767,120]
[354731126,1740648647340,-500.0,0.00048767,120]
[354731127,1740648647350,-500.0,0.00048767,120]
[354731128,1740648647360,-507.96,0.00048767,120]
[354731129,1740648647370,-876.22,0.00048767,120]
[354731130,1740648647381,-500.0,0.00048767,120]
[354731131,1740648647391,-500.0,0.00048767,120]
[354731132,1740648647400,-582.92,0.00048767,120]
[354731133,1740648647410,-4560.78,0.00048767,6]
[354731134,1740648647420,-510.01,0.00048767,120]
[354731135,1740648647431,-169.6,0.00048767,120]
[354731136,1740648647441,-500.0,0.00048767,120]
[354731137,1740648647451,-500.0,0.00048767,120]
[354731138,1740648647460,-500.0,0.00048767,120]
[354731139,1740648647470,-704.62,0.00048767,120]
[354731140,1740648647479,-500.0,0.00048767,120]
[354731141,1740648647488,-1639.23,0.00048767,120]
[354731142,1740648647497,-5983.05,0.00048767,120]
[354731143,1740648647507,-5807.92,0.00048767,120]
[354731144,1740648647517,-507.34,0.00048767,120]
[354731145,1740648647527,-500.0,0.00048767,120]
[354731146,1740648647536,-1247.71,0.00048767,120]
[354731147,1740648647546,-1493.42,0.00048767,120]
[354731148,1740648647556,-3548.42,0.00048767,120]
[354731149,1740648647566,-32800.06,0.00048767,7]
[354731150,1740648647577,-1812.5,0.00048767,14]
[354731151,1740648647591,-424.0,0.00049,120]
[354731152,1740648647602,-424.0,0.00049,120]
[354731153,1740648647611,-500.0,0.00049041,120]
[354731154,1740648647620,-633.1,0.00049041,120]
[354731155,1740648647631,-500.0,0.00049041,120]
[354731156,1740648647640,-500.0,0.00049041,120]
[354731157,1740648647650,-500.0,0.00049041,120]
[354731158,1740648647660,-500.0,0.00049041,120]